[Event "BL 2016-17"]
[Site "Germany"]
[Date "2017.04.08"]
[Round "11"]
[White "Eichler, Christoph"]
[Black "Grabarczyk, Bogdan"]
[Result "1/2-1/2"]
[ECO "D02"]
[WhiteElo "2290"]
[BlackElo "2397"]
[Annotator "ChessBase"]
[PlyCount "128"]
[EventDate "2017.??.??"]
[EventType "team-tourn"]
[EventCountry "GER"]
[SourceTitle "playchess.com"]
[Source "ChessBase"]
[SourceQuality "1"]
[WhiteTeam "Zugzwang München"]
[BlackTeam "Griesheim"]
[TimeControl "40/6000+30:3000+30"]

1. Nf3 {[%emt 0:00:00]} d5 {[%emt 0:00:06]} 2. d4 {[%emt 0:00:00]} Nf6 {[%emt 0:00:09]} 3. c4 {[%emt 0:00:16]} e6 {[%emt 0:00:08]} 4. g3 {[%emt 0:01:39]} Bb4+ {[%emt 0:00:16]} 5. Nbd2 {[%emt 0:00:57]} O-O {[%emt 0:01:16]} 6. Bg2 {[%emt 0:00:42]} dxc4 {[%emt 0:03:17]} 7. O-O {[%emt 0:10:46]} b5 {[%emt 0:07:15]} 8. a4 {[%emt 0:13:35]} c6 {[%emt 0:01:46]} 9. Qc2 {[%emt 0:04:28]} Bb7 {[%emt 0:04:04]} 10. Rd1 {[%emt 0:07:06]} a6 {[%emt 0:03:19]} 11. b3 {[%emt 0:06:36]} cxb3 {[%emt 0:03:45]} 12. Nxb3 {[%emt 0:03:13]} Nbd7 {[%emt 0:00:39]} 13. Bd2 {[%emt 0:06:53]} Qe7 {[%emt 0:05:07]} 14. Bxb4 {[%emt 0:08:26]} Qxb4 {[%emt 0:00:05]} 15. Ne1 {[%emt 0:00:22]} bxa4 {[%emt 0:11:00]} 16. Nc5 {[%emt 0:02:04]} Nxc5 {[%emt 0:00:03]} 17. dxc5 {[%emt 0:00:11]} Qa5 {[%emt 0:00:08]} 18. Rxa4 {[%emt 0:05:07]} Qc7 {[%emt 0:00:03]} 19. Nd3 {[%emt 0:00:31]} Rfd8 {[%emt 0:02:23]} 20. Rb1 {[%emt 0:01:47]} a5 {[%emt 0:03:00]} 21. Qb2 {[%emt 0:04:37]} Ba6 {[%emt 0:00:36]} 22. Qb6 {[%emt 0:14:43]} Qxb6 {[%emt 0:00:45]} 23. Rxb6 {[%emt 0:00:45]} Bb5 {[%emt 0:01:26]} 24. Ra3 {[%emt 0:01:44]} Nd7 {[%emt 0:05:42]} 25. Rb7 {[%emt 0:02:25]} Bxd3 {[%emt 0:00:15]} 26. exd3 {[%emt 0:01:15]} Nxc5 {[%emt 0:00:10]} 27. Rc7 {[%emt 0:00:14]} Rxd3 {[%emt 0:10:14]} 28. Rxa5 {[%emt 0:02:33]} Rd1+ {[%emt 0:02:20]} 29. Bf1 {[%emt 0:00:05]} Rb8 {[%emt 0:00:05]} 30. Rxc5 {[%emt 0:00:25]} g6 {[%emt 0:00:03]} 31. Kg2 {[%emt 0:00:24]} Rbb1 {[%emt 0:00:02]} 32. Bc4 {[%emt 0:01:12]} Rd2 {[%emt 0:03:01]} 33. Bxe6 {[%emt 0:03:21]} fxe6 {[%emt 0:00:02]} 34. Ra5 {[%emt 0:00:06]} Rbd1 {[%emt 0:07:10]} 35. Raa7 {[%emt 0:00:39]} h5 {[%emt 0:00:21]} 36. Rg7+ {[%emt 0:00:39]} Kf8 {[%emt 0:00:02]} 37. Rh7 {[%emt 0:01:48]} Kg8 {[%emt 0:00:04]} 38. Rhg7+ {[%emt 0:00:03]} Kf8 {[%emt 0:00:09]} 39. Rxg6 {[%emt 0:00:04]} Rd7 {[%emt 0:00:09]} 40. Rxd7 {[%emt 0:01:25]} Rxd7 {[%emt 0:50:03]} 41. Rxe6 {[%emt 0:50:08]} Rc7 {[%emt 0:00:03]} 42. Rh6 {[%emt 0:02:20]} c5 {[%emt 0:00:22]} 43. Rxh5 {[%emt 0:00:05]} c4 {[%emt 0:00:09]} 44. Re5 {[%emt 0:01:51]} Kf7 {[%emt 0:01:38]} 45. Re2 {[%emt 0:01:14]} c3 {[%emt 0:00:36]} 46. Rc2 {[%emt 0:00:14]} Ke6 {[%emt 0:00:02]} 47. f4 {[%emt 0:00:00]} Kd5 {[%emt 0:00:00]} 48. Kf3 {[%emt 0:00:00]} Kd4 {[%emt 0:00:00]} 49. g4 {[%emt 0:00:00]} Kd3 {[%emt 0:00:00]} 50. Rc1 {[%emt 0:00:00]} c2 {[%emt 0:00:00]} 51. g5 {[%emt 0:00:00]} Rc3 {[%emt 0:00:00]} 52. Kg4 {[%emt 0:00:00]} Kd2 {[%emt 0:00:00]} 53. Rxc2+ {[%emt 0:00:00]} Rxc2 {[%emt 0:00:00]} 54. g6 {[%emt 0:00:00]} Ke3 {[%emt 0:00:00]} 55. Kg5 {[%emt 0:00:00]} Ke4 {[%emt 0:00:00]} 56. h4 {[%emt 0:00:00]} Rc5+ {[%emt 0:00:00]} 57. f5 {[%emt 0:00:00]} Rxf5+ {[%emt 0:00:00]} 58. Kh6 {[%emt 0:00:00]} Rf4 {[%emt 0:00:00]} 59. h5 {[%emt 0:00:00]} Kf5 {[%emt 0:00:00]} 60. g7 {[%emt 0:00:02]} Rg4 {[%emt 0:00:00]} 61. Kh7 {[%emt 0:00:21]} Kf6 {[%emt 0:00:00]} 62. g8=Q {[%emt 0:04:27]} Rxg8 {[%emt 0:00:00]} 63. Kxg8 {[%emt 0:00:02]} Kg5 {[%emt 0:00:00]} 64. h6 {[%emt 0:00:17]} Kxh6 1/2-1/2

[Event "BL 2016-17"]
[Site "Germany"]
[Date "2017.04.08"]
[Round "11"]
[White "Grimm, Julius"]
[Black "Hoffmeyer, Falk"]
[Result "1/2-1/2"]
[ECO "D20"]
[WhiteElo "2281"]
[BlackElo "2353"]
[Annotator "NA"]
[PlyCount "42"]
[EventDate "2017.??.??"]
[EventType "team-tourn"]
[EventCountry "GER"]
[SourceTitle "playchess.com"]
[Source "ChessBase"]
[SourceQuality "1"]
[WhiteTeam "Griesheim"]
[BlackTeam "Zugzwang München"]
[TimeControl "40/6000+30:3000+30"]

1. d4 {[%emt 0:00:00]} d5 {[%emt 0:00:12]} 2. c4 {[%emt 0:00:00]} dxc4 {[%emt 0:00:15]} 3. e3 {[%emt 0:00:57]} e5 {[%emt 0:00:15]} 4. Bxc4 {[%emt 0:00:42]} exd4 {[%emt 0:00:06]} 5. exd4 {[%emt 0:00:15]} Bd6 {[%emt 0:00:08]} 6. Nf3 {[%emt 0:02:02]} Nf6 {[%emt 0:00:10]} 7. O-O {[%emt 0:00:39]} O-O {[%emt 0:00:08]} 8. Nc3 {[%emt 0:05:24]} Nc6 {[%emt 0:01:15]} 9. h3 {[%emt 0:02:02]} h6 {[%emt 0:01:06]} 10. Qc2 {[%emt 0:03:14]} Nb4 {[%emt 0:02:12]} 11. Qb1 {[%emt 0:01:32]} Be6 {[%emt 0:00:39]} 12. Bxe6 {[%emt 0:02:00]} fxe6 {[%emt 0:00:02]} 13. Re1 {[%emt 0:15:57] LiveBook: 15 Games} Qd7 {[%emt 0:01:27]} 14. a3 {[%emt 0:01:03]} Nbd5 {[%emt 0:01:20]} 15. Qd3 {[%emt 0:04:20]} a6 $14 {[%emt 0:03:56]} 16. Bd2 {[%emt 0:23:43]} Rae8 {[%emt 0:04:36]} 17. Ne5 {[%emt 0:08:38]} Bxe5 {[%emt 0:04:17]} 18. Rxe5 {[%emt 0:03:18]} Qf7 {[%emt 0:02:32]} 19. Qe2 {[%emt 0:09:24]} Nd7 {[%emt 0:06:50]} 20. Re4 {[%emt 0:00:08]} N7f6 {[%emt 0:00:42]} 21. Re5 {[%emt 0:01:18]} Nd7 {[%emt 0:00:25]} 1/2-1/2

[Event "BL 2016-17"]
[Site "Germany"]
[Date "2017.04.08"]
[Round "11"]
[White "Unzicker, Ferdinand"]
[Black "Boguslawski, Oleg"]
[Result "1/2-1/2"]
[ECO "E44"]
[WhiteElo "2280"]
[BlackElo "2424"]
[Annotator "NA"]
[PlyCount "58"]
[EventDate "2017.??.??"]
[EventType "team-tourn"]
[EventCountry "GER"]
[SourceTitle "playchess.com"]
[Source "ChessBase"]
[SourceQuality "1"]
[WhiteTeam "Bayern München"]
[BlackTeam "Hockenheim"]
[TimeControl "40/6000+30:3000+30"]

1. d4 {[%emt 0:00:00]} Nf6 {[%emt 0:00:08]} 2. c4 {[%emt 0:00:00]} e6 {[%emt 0:00:06]} 3. Nc3 {[%emt 0:00:00]} Bb4 {[%emt 0:00:50]} 4. e3 {[%emt 0:00:00]} b6 {[%emt 0:00:49]} 5. Nge2 {[%emt 0:00:18]} Bb7 {[%emt 0:03:26]} 6. a3 {[%emt 0:00:18]} Bxc3+ {[%emt 0:02:10]} 7. Nxc3 {[%emt 0:00:03]} O-O {[%emt 0:00:20]} 8. b4 {[%emt 0:02:44]} d6 {[%emt 0:06:50]} 9. f3 {[%emt 0:12:41]} Nbd7 {[%emt 0:05:57]} 10. Be2 {[%emt 0:06:29]} Qe7 {[%emt 0:09:17]} 11. O-O {[%emt 0:02:21]} c5 {[%emt 0:05:18]} 12. Rb1 {[%emt 0:29:00]} Rfd8 {[%emt 0:10:37]} 13. Qd2 {[%emt 0:09:33]} Rac8 {[%emt 0:03:04]} 14. Rd1 {[%emt 0:08:44]} cxd4 {[%emt 0:17:01]} 15. Qxd4 {[%emt 0:01:44]} d5 {[%emt 0:01:51]} 16. cxd5 {[%emt 0:00:35] ex} exd5 {[%emt 0:02:14]} 17. Bb2 $14 {[%emt 0:09:45]} Re8 {[%emt 0:01:36]} 18. Bb5 {[%emt 0:03:01]} Qxe3+ {[%emt 0:09:01]} 19. Qxe3 {[%emt 0:00:11]} Rxe3 {[%emt 0:00:02]} 20. Bxd7 {[%emt 0:00:36]} Nxd7 {[%emt 0:01:03]} 21. Nxd5 {[%emt 0:00:10]} Bxd5 {[%emt 0:00:58]} 22. Rxd5 {[%emt 0:00:06]} Nf8 {[%emt 0:01:54]} 23. Rd2 {[%emt 0:10:49]} Ne6 {[%emt 0:02:12]} 24. Kf2 {[%emt 0:00:52]} Rb3 {[%emt 0:00:45]} 25. Re1 {[%emt 0:01:06]} a5 {[%emt 0:01:57]} 26. bxa5 {[%emt 0:01:55]} bxa5 {[%emt 0:00:02]} 27. Re3 {[%emt 0:02:03]} Rb5 {[%emt 0:06:15]} 28. Re5 {[%emt 0:01:55]} Rxe5 {[%emt 0:02:19]} 29. Bxe5 {[%emt 0:00:19]} f6 {[%emt 0:00:20]} 1/2-1/2

[Event "BL 2016-17"]
[Site "Jenbach"]
[Date "2017.04.22"]
[Round "11"]
[White "Blohberger, Felix"]
[Black "Koffler, Daniel"]
[Result "1-0"]
[ECO "A13"]
[WhiteElo "2265"]
[BlackElo "2126"]
[Annotator "NA"]
[PlyCount "45"]
[EventDate "2017.??.??"]
[EventCountry "AUT"]
[SourceTitle "playchess.com"]
[Source "ChessBase"]
[SourceQuality "1"]
[WhiteTeam "Wien-SK Ottakring"]
[BlackTeam "Nickelsdorf"]
[TimeControl "40/5400+30:1800+30"]

1. c4 {[%emt 0:00:00]} e6 2. Nc3 {[%emt 0:01:13]} d5 {[%emt 0:00:19]} 3. e3 {[%emt 0:02:28]} Nf6 {[%emt 0:03:25]} 4. Nf3 {[%emt 0:00:34]} Be7 {[%emt 0:00:15]} 5. b3 {[%emt 0:02:47]} O-O {[%emt 0:00:16]} 6. Bb2 {[%emt 0:00:07]} b6 {[%emt 0:01:02]} 7. d4 {[%emt 0:00:45]} Bb7 {[%emt 0:01:08]} 8. cxd5 {[%emt 0:03:14]} exd5 {[%emt 0:00:33]} 9. Bd3 {[%emt 0:00:05]} Nbd7 {[%emt 0:01:17]} 10. O-O {[%emt 0:00:09]} Re8 {[%emt 0:02:22]} 11. Ne5 {[%emt 0:17:22] LiveBook: 8 Games} Nxe5 {[%emt 0:09:00]} 12. dxe5 {[%emt 0:00:06]} Nd7 {[%emt 0:00:10]} 13. Qc2 {[%emt 0:07:31]} ({Stronger than} 13. Qh5 g6 14. Qd1 (14. Qh6 Nxe5 15. Be2 f5 $17) 14... Nxe5 $17) 13... g6 {[%emt 0:11:26]} 14. e6 {[%emt 0:05:58]} Nc5 {[%emt 0:00:48]} 15. exf7+ {[%emt 0:00:16]} Kxf7 {[%emt 0:00:02]} 16. Be2 $16 {[%emt 0:08:58]} Bf6 {[%emt 0:02:42]} 17. Rad1 {[%emt 0:02:22]} c6 {[%emt 0:00:34]} 18. b4 {[%emt 0:09:02]} Ne6 {[%emt 0:06:04]} 19. f4 {[%emt 0:04:58]} Kg8 {[%emt 0:09:48]} 20. f5 {[%emt 0:02:54]} Nf8 {[%emt 0:00:11]} 21. fxg6 {[%emt 0:00:37]} hxg6 {[%emt 0:00:18]} 22. Rxf6 {[%emt 0:01:25]} Qxf6 {[%emt 0:00:03]} 23. Nxd5 {[%emt 0:00:08]} 1-0

[Event "BL 2016-17"]
[Site "Jenbach"]
[Date "2017.04.22"]
[Round "11"]
[White "Kuntner, Reinhard"]
[Black "Steiner, Adam"]
[Result "1/2-1/2"]
[ECO "A22"]
[WhiteElo "2021"]
[BlackElo "2220"]
[Annotator "ChessBase"]
[PlyCount "144"]
[EventDate "2017.??.??"]
[EventCountry "AUT"]
[SourceTitle "playchess.com"]
[Source "ChessBase"]
[SourceQuality "1"]
[WhiteTeam "Nickelsdorf"]
[BlackTeam "Wien-SK Ottakring"]
[TimeControl "40/5400+30:1800+30"]

1. c4 {[%emt 0:00:00]} e5 {[%emt 0:00:06]} 2. Nc3 {[%emt 0:00:00]} Nf6 {[%emt 0:00:07]} 3. e4 {[%emt 0:03:08]} Bc5 {[%emt 0:04:00]} 4. h3 {[%emt 0:00:30]} O-O {[%emt 0:02:44]} 5. Nf3 {[%emt 0:02:06]} Re8 {[%emt 0:03:02]} 6. d3 {[%emt 0:00:51]} h6 {[%emt 0:04:37]} 7. g4 {[%emt 0:11:45]} Nh7 {[%emt 0:24:34]} 8. h4 {[%emt 0:06:02]} d5 {[%emt 0:02:03]} 9. g5 {[%emt 0:12:32]} d4 {[%emt 0:04:00]} 10. Nb1 {[%emt 0:09:48]} h5 {[%emt 0:04:45]} 11. Rg1 {[%emt 0:05:16]} g6 {[%emt 0:00:30]} 12. Be2 {[%emt 0:00:13]} Kg7 {[%emt 0:05:26]} 13. Nh2 {[%emt 0:01:46]} Rh8 {[%emt 0:00:27]} 14. Nd2 {[%emt 0:08:45]} Nc6 {[%emt 0:05:26]} 15. a3 {[%emt 0:02:17]} a5 {[%emt 0:00:04]} 16. Ndf1 {[%emt 0:00:05]} Nf8 {[%emt 0:13:48]} 17. Ng3 {[%emt 0:00:12]} Ne6 {[%emt 0:01:37]} 18. Bxh5 {[%emt 0:06:51]} gxh5 {[%emt 0:00:03]} 19. g6 {[%emt 0:00:12]} f6 {[%emt 0:11:12]} 20. Nf5+ {[%emt 0:08:20]} Kg8 {[%emt 0:00:33]} 21. Nh6+ {[%emt 0:01:24]} Rxh6 {[%emt 0:04:52]} 22. Bxh6 {[%emt 0:00:05]} Ng7 {[%emt 0:00:02]} 23. Bxg7 {[%emt 0:00:35]} Kxg7 {[%emt 0:00:02]} 24. Qxh5 {[%emt 0:00:12]} Qh8 {[%emt 0:00:01]} 25. Qxh8+ {[%emt 0:00:22]} Kxh8 {[%emt 0:00:01]} 26. h5 {[%emt 0:00:47]} Bf8 {[%emt 0:01:29]} 27. Ke2 {[%emt 0:05:09]} Bh6 {[%emt 0:00:13]} 28. Kf3 {[%emt 0:00:51]} a4 {[%emt 0:02:51]} 29. Rab1 {[%emt 0:01:31]} Na5 {[%emt 0:00:26]} 30. g7+ {[%emt 0:03:29]} Bxg7 {[%emt 0:00:53]} 31. Rg6 {[%emt 0:00:01]} Kh7 {[%emt 0:04:49]} 32. Rbg1 {[%emt 0:00:45]} Bh8 {[%emt 0:00:30]} 33. Rg8 {[%emt 0:01:31]} b6 {[%emt 0:00:54]} 34. R1g3 {[%emt 0:02:08]} f5 {[%emt 0:00:27]} 35. R8g6 {[%emt 0:04:20]} fxe4+ {[%emt 0:00:07]} 36. Kxe4 {[%emt 0:02:07]} Bb7+ {[%emt 0:00:13]} 37. Kf5 {[%emt 0:00:21]} Rf8+ {[%emt 0:00:33]} 38. Kg5 {[%emt 0:01:19]} Bg7 {[%emt 0:01:15]} 39. Ng4 {[%emt 0:01:13]} Nc6 40. h6 {[%emt 0:00:00]} Bh8 {[%emt 0:00:53]} 41. Nf6+ {[%emt 0:05:04]} Bxf6+ {[%emt 0:00:08]} 42. Rxf6 {[%emt 0:00:01]} Nd8 {[%emt 0:13:56]} 43. Rxf8 {[%emt 0:02:05]} Ne6+ {[%emt 0:00:00]} 44. Kf6 {[%emt 0:00:15]} Nxf8 {[%emt 0:00:02]} 45. Kxe5 {[%emt 0:00:33]} Kxh6 {[%emt 0:01:49]} 46. Kxd4 {[%emt 0:05:18]} Ng6 {[%emt 0:00:20]} 47. Kc3 {[%emt 0:01:24]} Kg7 {[%emt 0:01:33]} 48. d4 {[%emt 0:00:17]} Kf6 {[%emt 0:00:31]} 49. Re3 {[%emt 0:00:56]} Ne7 {[%emt 0:01:13]} 50. d5 {[%emt 0:02:14]} Bc8 {[%emt 0:01:06]} 51. Re1 {[%emt 0:01:36]} Bd7 {[%emt 0:01:06]} 52. Kb4 {[%emt 0:03:06]} c5+ {[%emt 0:05:53]} 53. dxc6 {[%emt 0:02:48]} Bxc6 {[%emt 0:00:04]} 54. b3 {[%emt 0:05:19]} axb3 {[%emt 0:00:49]} 55. Kxb3 {[%emt 0:00:05]} Nf5 {[%emt 0:02:16]} 56. Kc3 {[%emt 0:00:34]} Nd6 {[%emt 0:01:46]} 57. Kb4 {[%emt 0:00:11]} Nb7 {[%emt 0:00:44]} 58. Kc3 {[%emt 0:02:54]} Nc5 {[%emt 0:00:08]} 59. Rb1 {[%emt 0:02:21]} Ke5 {[%emt 0:00:27]} 60. Rg1 {[%emt 0:01:22]} Be4 {[%emt 0:02:58]} 61. Kb4 {[%emt 0:01:12]} Kd4 {[%emt 0:02:27]} 62. Rg5 {[%emt 0:00:55]} Nd3+ {[%emt 0:00:59]} 63. Kb5 {[%emt 0:00:08]} Nxf2 {[%emt 0:01:02]} 64. Kxb6 {[%emt 0:00:25]} Kxc4 {[%emt 0:00:02]} 65. a4 {[%emt 0:00:25]} Nd3 {[%emt 0:01:18]} 66. a5 {[%emt 0:00:07]} Nb4 {[%emt 0:00:11]} 67. Rg4 {[%emt 0:01:10]} Kd4 {[%emt 0:00:51]} 68. Kb5 {[%emt 0:00:28]} Nd5 {[%emt 0:00:08]} 69. Rxe4+ {[%emt 0:00:40]} Kxe4 {[%emt 0:00:02]} 70. Kc5 {[%emt 0:00:05]} Ke5 {[%emt 0:00:58]} 71. a6 {[%emt 0:00:12]} Nc7 {[%emt 0:00:27]} 72. a7 {[%emt 0:00:06]} Na8 {[%emt 0:00:14]} 1/2-1/2